fUST/lending_fUST_20250713
["ID","MTS","AMOUNT","RATE_DAILY","PERIOD"]
[371691605,1752389444167,-460.0,0.00017419,2]
[371691606,1752389444177,-1222.68,0.00017419,2]
[371691607,1752389444187,-348.10617728,0.0001742,2]
[371691608,1752389444197,-460.0,0.00017421,2]
[371691609,1752389444207,-460.0,0.00017421,2]
[371691610,1752389444216,-460.0,0.00017421,2]
[371691611,1752389444226,-468.93352812,0.00017421,2]
[371691612,1752389444235,-460.0,0.00017421,2]
[371691613,1752389444246,-628.66,0.00017421,2]
[371691614,1752389444256,-214.70013,0.00017475,2]
[371691615,1752389444266,-500.0,0.00017525,2]
[371691616,1752389444276,-214.70013,0.00017558,2]
[371691617,1752389444286,-214.70013,0.0001764,2]
[371691618,1752389444296,-436.54,0.00017693,2]
[371691619,1752389444306,-460.0,0.00017693,2]
[371691620,1752389444317,-460.0,0.00017693,2]
[371691621,1752389444327,-460.0,0.00017693,2]
[371691622,1752389444338,-460.0,0.00017693,2]
[371691623,1752389444347,-460.0,0.00017693,2]
[371691624,1752389444359,-365.19644651,0.00017693,2]
[371691625,1752389444368,-460.0,0.00017693,2]
[371691626,1752389444379,-460.0,0.00017693,2]
[371691627,1752389444388,-461.46,0.00017693,2]
[371691628,1752389444398,-668.67,0.00017693,2]
[371691629,1752389444407,-460.0,0.00017693,2]
[371691630,1752389444417,-460.0,0.00017693,2]
[371691631,1752389444426,-460.0,0.00017693,2]
[371691632,1752389444436,-2254.44,0.00017693,2]
[371691633,1752389444446,-460.0,0.00017693,2]
[371691634,1752389444455,-585.69,0.00017693,2]
[371691635,1752389444465,-460.0,0.00017693,2]
[371691636,1752389444474,-460.0,0.00017693,2]
[371691637,1752389444485,-589.57,0.00017693,2]
[371691638,1752389444494,-628.98,0.00017693,2]
[371691639,1752389444504,-1961.9,0.00017693,2]
[371691640,1752389444515,-460.0,0.00017693,2]
[371691641,1752389444524,-313.96587443,0.00017693,2]
[371691642,1752389444535,-1932.85,0.00017693,2]
[371691643,1752389444546,-1335.76,0.00017693,2]
[371691644,1752389444557,-460.0,0.00017693,2]
[371691645,1752389444567,-520.38,0.00017693,2]
[371691646,1752389444580,-460.0,0.00017693,2]
[371691647,1752389444590,-460.0,0.00017693,2]
[371691648,1752389444600,-614.1,0.00017693,2]
[371691649,1752389444610,-723.46,0.00017693,2]
[371691650,1752389444622,-1239.77,0.00017693,2]
[371691651,1752389444632,-460.0,0.00017693,2]
[371691652,1752389444643,-460.0,0.00017693,2]
[371691653,1752389444654,-460.0,0.00017693,2]
[371691654,1752389444664,-519.18,0.00017693,2]
[371691655,1752389444674,-713.01,0.00017693,2]
[371691656,1752389444683,-460.0,0.00017693,2]
[371691657,1752389444694,-460.0,0.00017693,2]
[371691658,1752389444704,-460.0,0.00017693,2]
[371691659,1752389444714,-460.0,0.00017695,2]
[371691660,1752389444723,-460.0,0.00017695,2]
[371691661,1752389444733,-460.0,0.00017695,2]
[371691662,1752389444743,-628.66,0.00017695,2]
[371691663,1752389444752,-214.70013,0.00017723,2]
[371691664,1752389444762,-498.26760387,0.0001773,2]
[371691665,1752389444772,-1000.0,0.00017761,2]
[371691666,1752389444782,-214.70013,0.00017806,2]
[371691667,1752389444791,-1147.28703749,0.00017867,2]
[371691668,1752389444801,-214.70013,0.00017889,2]
[371691669,1752389444811,-500.0,0.00017917,2]
[371691670,1752389444820,-504.43436431,0.00017917,2]
[371691671,1752389444830,-452.0,0.00017949,2]
[371691672,1752389444839,-460.0,0.00017967,2]
[371691673,1752389444849,-460.0,0.00017967,2]
[371691674,1752389444860,-460.0,0.00017967,2]
[371691675,1752389444870,-460.0,0.00017967,2]
[371691676,1752389444880,-460.0,0.00017967,2]
[371691677,1752389444889,-186.74,0.00017967,2]
[371691678,1752389444899,-461.46,0.00017967,2]
[371691679,1752389444908,-668.67,0.00017967,2]
[371691680,1752389444918,-460.0,0.00017967,2]
[371691681,1752389444927,-460.0,0.00017967,2]
[371691682,1752389444937,-460.0,0.00017967,2]
[371691683,1752389444946,-2254.44,0.00017967,2]
[371691684,1752389444956,-460.0,0.00017967,2]
[371691685,1752389444966,-585.69,0.00017967,2]
[371691686,1752389444975,-460.0,0.00017967,2]
[371691687,1752389444987,-158.64,0.00017967,2]
[371691688,1752389444997,-589.57,0.00017967,2]
[371691689,1752389445006,-628.98,0.00017967,2]
[371691690,1752389445016,-1961.9,0.00017967,2]
[371691691,1752389445025,-419.37008146,0.00017967,2]
[371691692,1752389445035,-1932.85,0.00017967,2]
[371691693,1752389445045,-1335.76,0.00017967,2]
[371691694,1752389445054,-460.0,0.00017967,2]
[371691695,1752389445063,-520.38,0.00017967,2]
[371691696,1752389445073,-460.0,0.00017967,2]
[371691697,1752389445082,-460.0,0.00017967,2]
[371691698,1752389445092,-614.1,0.00017967,2]
[371691699,1752389445103,-723.46,0.00017967,2]
[371691700,1752389445112,-1239.77,0.00017967,2]
[371691701,1752389445122,-460.0,0.00017967,2]
[371691702,1752389445131,-460.0,0.00017967,2]
[371691703,1752389445140,-460.0,0.00017967,2]
[371691704,1752389445150,-713.01,0.00017967,2]
[371691705,1752389445159,-519.18,0.00017967,2]
[371691706,1752389445168,-460.0,0.00017967,2]
[371691707,1752389445178,-476.86974326,0.00017967,2]
[371691708,1752389445188,-470.14361108,0.00017969,2]
[371691709,1752389445198,-460.0,0.00017969,2]
[371691710,1752389445207,-460.0,0.00017969,2]
[371691711,1752389445217,-628.66,0.00017969,2]
[371691712,1752389445226,-214.70013,0.00017972,2]
[371691713,1752389445235,-452.0,0.00017976,2]
[371691714,1752389445245,-452.0,0.00018004,2]
[371691715,1752389445254,-452.0,0.00018031,2]
[371691716,1752389445264,-207.4,0.00018049,2]
[371691717,1752389445274,-214.70013,0.00018054,2]
[371691718,1752389445284,-452.0,0.00018059,2]
[371691719,1752389445294,-505.97841678,0.00018073,2]
[371691720,1752389445304,-452.0,0.00018086,2]
[371691721,1752389445315,-452.0,0.00018113,2]
[371691722,1752389445327,-214.70013,0.00018137,2]
[371691723,1752389445338,-452.0,0.00018141,2]
[371691724,1752389445348,-151.0,0.00018141,2]
[371691725,1752389445360,-452.0,0.00018168,2]
[371691726,1752389445370,-452.0,0.00018196,2]
[371691727,1752389445379,-214.70013,0.0001822,2]
[371691728,1752389445389,-452.0,0.00018223,2]
[371691729,1752389445398,-180.01,0.00018241,2]
[371691730,1752389445408,-460.0,0.00018241,2]
[371691731,1752389445418,-460.0,0.00018241,2]
[371691732,1752389445428,-460.0,0.00018241,2]
[371691733,1752389445438,-460.0,0.00018241,2]
[371691734,1752389445448,-461.46,0.00018241,2]
[371691735,1752389445460,-668.67,0.00018241,2]
[371691736,1752389445472,-460.0,0.00018241,2]
[371691737,1752389445483,-460.0,0.00018241,2]
[371691738,1752389445492,-460.0,0.00018241,2]
[371691739,1752389445503,-2254.44,0.00018241,2]
[371691740,1752389445513,-460.0,0.00018241,2]
[371691741,1752389445523,-585.69,0.00018241,2]
[371691742,1752389445532,-460.0,0.00018241,2]
[371691743,1752389445543,-589.57,0.00018241,2]
[371691744,1752389445553,-628.98,0.00018241,2]
[371691745,1752389445563,-1961.9,0.00018241,2]
[371691746,1752389445574,-1932.85,0.00018241,2]
[371691747,1752389445584,-1335.76,0.00018241,2]
[371691748,1752389445594,-460.0,0.00018241,2]
[371691749,1752389445603,-520.38,0.00018241,2]
[371691750,1752389445613,-460.0,0.00018241,2]
[371691751,1752389445622,-460.0,0.00018241,2]
[371691752,1752389445632,-614.1,0.00018241,2]
[371691753,1752389445640,-723.46,0.00018241,2]
[371691754,1752389445652,-1239.77,0.00018241,2]
[371691755,1752389445663,-460.0,0.00018241,2]
[371691756,1752389445672,-460.0,0.00018241,2]
[371691757,1752389445684,-460.0,0.00018241,2]
[371691758,1752389445693,-713.01,0.00018241,2]
[371691759,1752389445703,-519.18,0.00018241,2]
[371691760,1752389445713,-233.54156638,0.00018241,2]
[371691761,1752389445723,-151.0,0.00018243,2]
[371691762,1752389445732,-460.0,0.00018243,2]
[371691763,1752389445742,-460.0,0.00018243,2]
[371691764,1752389445752,-628.66,0.00018243,2]
[371691765,1752389445762,-151.0,0.00018244,2]
[371691766,1752389445772,-151.0,0.00018244,2]
[371691767,1752389445782,-151.0,0.00018244,2]
[371691768,1752389445792,-151.0,0.00018244,2]
[371691769,1752389445802,-151.0,0.00018244,2]
[371691770,1752389445813,-452.0,0.0001825,2]
[371691771,1752389445823,-452.0,0.00018278,2]
[371691772,1752389445833,-214.70013,0.00018303,2]
[371691773,1752389445843,-452.0,0.00018305,2]
[371691774,1752389445853,-1500.0,0.00018309,2]
[371691775,1752389445863,-1147.28703747,0.00018328,2]
[371691776,1752389445872,-452.0,0.00018333,2]
[371691777,1752389445882,-214.70013,0.00018386,2]
[371691778,1752389445892,-160.0,0.00018467,2]
[371691779,1752389445903,-838.53376533,0.00018467,2]
[371691780,1752389445913,-215.42595214,0.00018467,2]
[371691781,1752389445923,-214.70013,0.00018469,2]
[371691782,1752389445933,-160.0,0.00018469,2]
[371691783,1752389445942,-160.0,0.00018469,2]
[371691784,1752389445951,-160.0,0.00018469,2]
[371691785,1752389445960,-160.0,0.00018469,2]
[371691786,1752389445970,-160.0,0.0001847,2]
[371691787,1752389445979,-230.68503973,0.0001847,2]
[371691789,1752389445988,-160.0,0.0001847,2]
[371691791,1752389445997,-692.9,0.00018505,3]
[371691793,1752389446006,-346.46,0.00018505,3]
[371691795,1752389446015,-460.0,0.00018515,2]
[371691796,1752389446024,-394.72,0.00018515,2]
[371691797,1752389446033,-460.0,0.00018515,2]
[371691799,1752389446042,-415.37,0.00018515,2]
[371691800,1752389446052,-461.46,0.00018515,2]
[371691801,1752389446061,-668.67,0.00018515,2]
[371691802,1752389446071,-460.0,0.00018515,2]
[371691803,1752389446080,-460.0,0.00018515,2]
[371691804,1752389446089,-460.0,0.00018515,2]
[371691805,1752389446099,-2254.44,0.00018515,2]
[371691806,1752389446109,-460.0,0.00018515,2]
[371691807,1752389446118,-585.69,0.00018515,2]
[371691808,1752389446127,-460.0,0.00018515,2]
[371691809,1752389446137,-589.57,0.00018515,2]
[371691810,1752389446146,-628.98,0.00018515,2]
[371691811,1752389446155,-1961.9,0.00018515,2]
[371691812,1752389446165,-1932.85,0.00018515,2]
[371691813,1752389446175,-1335.76,0.00018515,2]
[371691815,1752389446184,-460.0,0.00018515,2]
[371691816,1752389446193,-520.38,0.00018515,2]
[371691817,1752389446203,-460.0,0.00018515,2]
[371691818,1752389446212,-460.0,0.00018515,2]
[371691819,1752389446222,-614.1,0.00018515,2]
[371691820,1752389446231,-723.46,0.00018515,2]
[371691821,1752389446241,-1239.77,0.00018515,2]
[371691822,1752389446250,-460.0,0.00018515,2]
[371691823,1752389446259,-460.0,0.00018515,2]
[371691824,1752389446269,-460.0,0.00018515,2]
[371691825,1752389446278,-713.01,0.00018515,2]
[371691826,1752389446287,-519.18,0.00018515,2]
[371691827,1752389446295,-389.59,0.00018517,2]
[371691828,1752389446304,-460.0,0.00018517,2]
[371691829,1752389446313,-628.66,0.00018517,2]
[371691830,1752389446322,-463.084,0.0001852,2]
[371691831,1752389446331,-214.70013,0.00018551,2]
[371691832,1752389446339,-214.70013,0.00018634,2]
[371691833,1752389446347,-534.567117,0.00018689,2]
[371691834,1752389446356,-24268.4847128,0.00018689,2]
[371691835,1752389446366,-214.70013,0.00018717,2]
[371691836,1752389446375,-1147.28703747,0.00018788,2]
[371691837,1752389446384,-460.0,0.00018789,2]
[371691838,1752389446394,-460.0,0.00018789,2]
[371691839,1752389446405,-461.46,0.00018789,2]
[371691840,1752389446414,-668.67,0.00018789,2]
[371691841,1752389446424,-460.0,0.00018789,2]
[371691842,1752389446433,-460.0,0.00018789,2]
[371691843,1752389446442,-460.0,0.00018789,2]
[371691844,1752389446452,-2254.44,0.00018789,2]
[371691845,1752389446461,-460.0,0.00018789,2]
[371691847,1752389446470,-585.69,0.00018789,2]
[371691848,1752389446480,-460.0,0.00018789,2]
[371691849,1752389446491,-589.57,0.00018789,2]
[371691850,1752389446500,-628.98,0.00018789,2]
[371691852,1752389446510,-1961.9,0.00018789,2]
[371691853,1752389446519,-1932.85,0.00018789,2]
[371691854,1752389446528,-1335.76,0.00018789,2]
[371691855,1752389446538,-460.0,0.00018789,2]
[371691856,1752389446547,-520.38,0.00018789,2]
[371691858,1752389446557,-460.0,0.00018789,2]
[371691859,1752389446567,-460.0,0.00018789,2]
[371691860,1752389446581,-614.1,0.00018789,2]
[371691861,1752389446592,-723.46,0.00018789,2]
[371691862,1752389446603,-1239.77,0.00018789,2]
[371691863,1752389446614,-460.0,0.00018789,2]
[371691864,1752389446626,-460.0,0.00018789,2]
[371691865,1752389446637,-460.0,0.00018789,2]
[371691866,1752389446648,-713.01,0.00018789,2]
[371691867,1752389446766,-519.18,0.00018789,2]
[371691868,1752389446777,-279.20906446,0.00018791,2]
[371691869,1752389446787,-628.66,0.00018791,2]
[371691870,1752389446796,-3484.37248072,0.00018799,2]
[371691871,1752389446806,-1216.96176213,0.00018799,2]
[371691872,1752389446816,-4862.97920149,0.00018799,2]
[371691873,1752389446825,-378.39502265,0.00018799,2]
[371691874,1752389446835,-965.14333166,0.00018799,2]
[371691875,1752389446844,-214.70013,0.000188,2]
[371691876,1752389446854,-776.35948408,0.00018834,2]
[371691877,1752389446863,-507.57266618,0.00018857,2]
[371691878,1752389446872,-214.70013,0.00018883,2]
[371691879,1752389446882,-498.26760387,0.00018962,2]
[371691881,1752389446892,-150.6122,0.00018976,2]
[371691882,1752389446902,-151.0,0.00019,2]
[371691883,1752389446911,-151.0,0.00019001,2]
[371691884,1752389446921,-681.72520747,0.00019002,2]
[371691885,1752389446930,-151.0,0.00019002,2]
[371691886,1752389446939,-151.0,0.00019002,2]
[371691887,1752389446949,-151.0,0.00019002,2]
[371691888,1752389446958,-151.0,0.00019002,2]
[371691889,1752389446968,-603.76,0.00019063,2]
[371691890,1752389446978,-460.0,0.00019063,2]
[371691891,1752389446989,-461.46,0.00019063,2]
[371691892,1752389446999,-668.67,0.00019063,2]
[371691893,1752389447010,-460.0,0.00019063,2]
[371691894,1752389447020,-460.0,0.00019063,2]
[371691895,1752389447032,-460.0,0.00019063,2]
[371691896,1752389447042,-2254.44,0.00019063,2]
[371691897,1752389447052,-460.0,0.00019063,2]
[371691898,1752389447061,-585.69,0.00019063,2]
[371691899,1752389447071,-460.0,0.00019063,2]
[371691900,1752389447081,-589.57,0.00019063,2]
[371691901,1752389447090,-628.98,0.00019063,2]
[371691902,1752389447100,-1961.9,0.00019063,2]
[371691903,1752389447109,-1932.85,0.00019063,2]
[371691904,1752389447119,-1335.76,0.00019063,2]
[371691905,1752389447128,-460.0,0.00019063,2]
[371691906,1752389447138,-520.38,0.00019063,2]
[371691907,1752389447147,-460.0,0.00019063,2]
[371691908,1752389447156,-198.56976246,0.00019063,2]
[371691909,1752389447167,-614.1,0.00019063,2]
[371691910,1752389447177,-723.46,0.00019063,2]
[371691911,1752389447187,-1239.77,0.00019063,2]
[371691912,1752389447197,-460.0,0.00019063,2]
[371691913,1752389447208,-377.66,0.00019063,2]
[371691914,1752389447219,-344.33256365,0.00019063,2]
[371691915,1752389447230,-519.18,0.00019063,2]
[371691916,1752389447239,-713.01,0.00019063,2]
[371691917,1752389447251,-628.66,0.00019065,2]
[371691918,1752389447260,-177.029526,0.00019066,2]
[371691919,1752389447271,-151.0,0.00019066,2]
[371691920,1752389447281,-151.0,0.000191,2]
[371691921,1752389447290,-460.0,0.00019178,2]
[371691922,1752389447300,-467.33538975,0.00019178,2]
[371691923,1752389447310,-254.9155158,0.00019178,2]
[371691924,1752389447319,-151.0,0.00019178,2]
[371691925,1752389447328,-666.0,0.00019178,2]
[371691926,1752389447337,-305.820766,0.00019178,2]
[371691927,1752389447347,-24268.48471278,0.00019199,2]
[371691928,1752389447358,-3209.13,0.000192,2]
[371691929,1752389447367,-578.43,0.000192,2]
[371691930,1752389447377,-151.0,0.000192,2]
[371691931,1752389447387,-151.484593,0.00019222,2]
[371691932,1752389447396,-151.0,0.00019222,2]
[371691933,1752389447406,-152.095388,0.00019222,2]
[371691934,1752389447416,-151.0,0.00019222,2]
[371691935,1752389447425,-229.246399,0.00019222,2]
[371691936,1752389447435,-256.03336106,0.00019233,2]
[371691937,1752389447444,-1147.28703747,0.00019249,2]
[371691938,1752389447454,-151.0,0.000193,2]
[371691939,1752389447464,-151.0,0.000193,2]
[371691940,1752389447474,-152.56476,0.00019329,2]
[371691941,1752389447483,-151.0,0.00019329,2]
[371691942,1752389447493,-151.0,0.00019329,2]
[371691943,1752389447502,-151.0,0.00019329,2]
[371691944,1752389447512,-151.0,0.00019329,2]
[371691945,1752389447521,-151.0,0.00019329,2]
[371691946,1752389447530,-151.0,0.00019329,2]
[371691947,1752389447539,-265.8855499,0.00019329,2]
[371691948,1752389447548,-151.0,0.00019329,2]
[371691949,1752389447557,-151.0,0.00019329,2]
[371691950,1752389447567,-315.969708,0.00019329,2]
[371691951,1752389447578,-315.969708,0.00019329,2]
[371691952,1752389447588,-259.196509,0.00019329,2]
[371691953,1752389447598,-151.0,0.00019329,2]
[371691954,1752389447608,-151.0,0.00019329,2]
[371691955,1752389447618,-151.0,0.00019329,2]
[371691956,1752389447627,-151.0,0.00019329,2]
[371691957,1752389447637,-267.026843,0.00019329,2]
[371691958,1752389447647,-100000.0,0.00019329,2]
[371691959,1752389447657,-542.17542581,0.00019337,2]
[371691960,1752389447667,-461.46,0.00019337,2]
[371691961,1752389447677,-460.0,0.00019337,2]
[371691962,1752389447687,-668.67,0.00019337,2]
[371691963,1752389447698,-460.0,0.00019337,2]
[371691964,1752389447707,-460.0,0.00019337,2]
[371691965,1752389447717,-2254.44,0.00019337,2]
[371691966,1752389447726,-460.0,0.00019337,2]
[371691967,1752389447736,-585.69,0.00019337,2]
[371691968,1752389447746,-460.0,0.00019337,2]
[371691969,1752389447756,-589.57,0.00019337,2]
[371691970,1752389447765,-628.98,0.00019337,2]
[371691971,1752389447775,-1961.9,0.00019337,2]
[371691972,1752389447785,-1932.85,0.00019337,2]
[371691973,1752389447794,-1335.76,0.00019337,2]
[371691974,1752389447804,-460.0,0.00019337,2]
[371691975,1752389447814,-520.38,0.00019337,2]
[371691976,1752389447824,-460.0,0.00019337,2]
[371691977,1752389447833,-614.1,0.00019337,2]
[371691978,1752389447843,-723.46,0.00019337,2]
[371691979,1752389447854,-1239.77,0.00019337,2]
[371691980,1752389447863,-460.0,0.00019337,2]
[371691981,1752389447873,-519.18,0.00019337,2]
[371691982,1752389447883,-713.01,0.00019337,2]
[371691983,1752389447892,-628.66,0.00019339,2]
[371691984,1752389447902,-151.0,0.00019341,2]
[371691985,1752389447911,-151.0,0.00019341,2]
[371691986,1752389447921,-151.0,0.00019341,2]
[371691987,1752389447931,-501.04929692,0.00019373,2]
[371691988,1752389447940,-511.98639995,0.00019373,2]
[371691989,1752389447950,-636.21661904,0.00019373,2]
[371691990,1752389447960,-500.0,0.00019373,2]
[371691991,1752389447969,-500.0,0.00019373,2]
[371691992,1752389447979,-15703.8,0.000194,2]
[371691993,1752389447988,-151.0,0.000194,2]
[371691994,1752389447998,-215.0738,0.00019418,2]
[371691995,1752389448008,-168.0,0.00019442,2]
[371691996,1752389448017,-168.0,0.0001945,2]
[371691997,1752389448027,-1569.496,0.00019573,2]
[371691998,1752389448037,-412.626,0.00019573,2]
[371691999,1752389448047,-151.0,0.000196,2]
[371692000,1752389448057,-151.0,0.000196,2]
[371692001,1752389448066,-151.0,0.000196,2]
[371692002,1752389448076,-71733.14970731,0.00019602,2]
[371692003,1752389448086,-168.0,0.0001961,2]
[371692004,1752389448095,-461.46,0.00019611,2]
[371692005,1752389448107,-460.0,0.00019611,2]
[371692006,1752389448117,-668.67,0.00019611,2]
[371692007,1752389448126,-460.0,0.00019611,2]
[371692008,1752389448136,-460.0,0.00019611,2]
[371692009,1752389448146,-2254.44,0.00019611,2]
[371692010,1752389448155,-460.0,0.00019611,2]
[371692011,1752389448164,-585.69,0.00019611,2]
[371692012,1752389448174,-460.0,0.00019611,2]
[371692013,1752389448184,-589.57,0.00019611,2]
[371692014,1752389448194,-628.98,0.00019611,2]
[371692015,1752389448203,-1961.9,0.00019611,2]
[371692016,1752389448213,-1932.85,0.00019611,2]
[371692017,1752389448223,-1335.76,0.00019611,2]
[371692018,1752389448232,-460.0,0.00019611,2]
[371692019,1752389448242,-520.38,0.00019611,2]
[371692020,1752389448252,-406.29,0.00019611,2]
[371692021,1752389448262,-614.1,0.00019611,2]
[371692022,1752389448271,-723.46,0.00019611,2]
[371692023,1752389448281,-1239.77,0.00019611,2]
[371692024,1752389448291,-460.0,0.00019611,2]
[371692025,1752389448300,-519.18,0.00019611,2]
[371692026,1752389448310,-713.01,0.00019611,2]
[371692027,1752389448319,-628.66,0.00019613,2]
[371692028,1752389448329,-168.0,0.00019615,2]
[371692029,1752389448338,-168.0,0.00019654,2]
[371692030,1752389448348,-151.0,0.000197,2]
[371692031,1752389448359,-168.0,0.00019708,2]
[371692032,1752389448369,-1147.28703747,0.00019709,2]
[371692033,1752389448379,-24268.48471278,0.00019709,2]
[371692034,1752389448389,-168.0,0.00019712,2]
[371692035,1752389448399,-168.0,0.00019771,2]
[371692036,1752389448409,-694.87999475,0.00019786,2]
[371692037,1752389448419,-168.0,0.00019786,2]
[371692038,1752389448429,-851.79375385,0.000198,2]
[371692039,1752389448438,-5000.0,0.000198,3]
[371692040,1752389448448,-151.0,0.000198,2]
[371692041,1752389448457,-181.395605,0.000198,2]
[371692042,1752389448467,-181.395605,0.000198,2]
[371692043,1752389448477,-151.0,0.000198,2]
[371692044,1752389448487,-151.0,0.000198,2]
[371692045,1752389448496,-510629.12379005,0.000198,2]
[371692046,1752389448591,-1353.1442974,0.000198,2]
[371692047,1752389448603,-308.88468616,0.000198,2]
[371692048,1752389448614,-9981.8875,0.000198,2]
[371692049,1752389448751,-3492.03333909,0.000198,2]
[371692050,1752389449353,-235.52853602,0.00016597,2]
[371692051,1752389449363,-461.05371279,0.00016597,2]
[371692052,1752389449373,-461.2302187,0.00016597,2]
[371692053,1752389449383,-460.0,0.00017419,2]
[371692054,1752389449393,-519.69,0.00017683,3]
[371692055,1752389449402,-1222.68,0.00017693,2]
[371692056,1752389449411,-460.0,0.00017693,2]
[371692057,1752389449421,-1222.68,0.00017967,2]
[371692058,1752389449431,-460.0,0.00017967,2]
[371692059,1752389449440,-1222.68,0.00018241,2]
[371692060,1752389449450,-460.0,0.00018241,2]
[371692061,1752389449565,-452.0,0.0001836,2]
[371692062,1752389449578,-452.0,0.00018387,2]
[371692063,1752389449588,-452.0,0.00018415,2]
[371692064,1752389449599,-452.0,0.00018442,2]
[371692065,1752389449610,-452.0,0.0001847,2]
[371692066,1752389449620,-452.0,0.00018497,2]
[371692067,1752389449630,-44.11783117,0.00018515,2]
[371692068,1752389449646,-1178.56216883,0.00018515,2]
[371692069,1752389449656,-460.0,0.00018515,2]
[371692070,1752389449666,-452.0,0.00018524,2]
[371692071,1752389449676,-452.0,0.00018552,2]
[371692072,1752389449685,-456.45188498,0.00018579,2]
[371692073,1752389449695,-1222.68,0.00018789,2]
[371692074,1752389449705,-460.0,0.00018789,2]
[371692075,1752389449715,-1222.68,0.00019063,2]
[371692076,1752389449726,-460.0,0.00019063,2]
[371692077,1752389449738,-1222.68,0.00019337,2]
[371692078,1752389449748,-302.02,0.00019337,2]
[371692079,1752389449758,-1222.68,0.00019611,2]
[371692080,1752389449767,-2085.20615595,0.000198,2]
[371692081,1752389449780,-45641.29389433,0.000198,2]
[371692087,1752389516527,433.5012,0.00013699,2]
[371692091,1752389921840,768.16878453,0.00015768,2]
[371692092,1752389922156,768.16878453,0.00015955,2]
[371692093,1752389922515,768.16878453,0.00016242,2]
[371692094,1752390189778,854.17,0.00023,30]
[371692096,1752390312006,154.849507,0.00022528,30]
[371692097,1752390312315,154.849507,0.00022487,30]
[371692098,1752390312622,154.849507,0.00022447,30]
[371692099,1752390312926,154.849507,0.00022406,30]
[371692101,1752390386323,854.17,0.00023,30]
[371692122,1752390508828,435.379677,0.00013699,2]
[371692123,1752390552040,768.79883834,0.00016171,2]
[371692164,1752390632682,-629.71721096,0.00016395,2]
[371692166,1752390632691,-1895.50750783,0.00016473,2]
[371692168,1752390632701,-259.84,0.00016486,3]
[371692170,1752390632711,-300.0,0.00016494,2]
[371692172,1752390632720,-300.0,0.00016494,2]
[371692174,1752390632729,-759.0,0.00016494,2]
[371692176,1752390632738,-2141.35545075,0.00016495,2]
[371692179,1752390632750,-699.79020707,0.00016495,2]
[371692181,1752390632761,-6858.85434218,0.00016495,2]
[371692183,1752390632770,-213.36311692,0.00016495,2]
[371692185,1752390632780,-500.0,0.00016495,2]
[371692187,1752390632789,-500.0,0.00016495,2]
[371692189,1752390632799,-442.95615654,0.00016495,2]
[371692191,1752390632811,-57.04384346,0.00016495,2]
[371692194,1752390632820,-233.4747062,0.00016495,2]
[371692196,1752390632833,-266.5252938,0.00016495,2]
[371692200,1752390632842,-500.0,0.00016495,2]
[371692202,1752390632852,-500.0,0.00016495,2]
[371692204,1752390632861,-500.0,0.00016495,2]
[371692206,1752390632870,-502.18497154,0.00016495,2]
[371692208,1752390632880,-500.0,0.00016495,2]